fUSD/lending_fUSD_20250502
["ID","MTS","AMOUNT","RATE_DAILY","PERIOD"]
[359634446,1746201032183,-377.97315548,0.00019664,2]
[359634447,1746201032193,-231.7893,0.00019664,2]
[359634448,1746201032203,-55492.08417972,0.00019665,2]
[359634449,1746201032212,-200.0,0.00019665,2]
[359634450,1746201032221,-1048.0,0.000197,2]
[359634451,1746201032231,-171.79080425,0.00019743,2]
[359634452,1746201032240,-450.0,0.00019763,2]
[359634453,1746201032250,-450.0,0.00019763,2]
[359634454,1746201032259,-450.0,0.00019763,2]
[359634455,1746201032268,-450.0,0.00019763,2]
[359634456,1746201032277,-450.0,0.00019763,2]
[359634457,1746201032287,-481.58,0.00019763,2]
[359634458,1746201032296,-450.0,0.00019763,2]
[359634460,1746201032305,-450.0,0.00019763,2]
[359634462,1746201032314,-500.0,0.00019763,2]
[359634464,1746201032324,-517.16255553,0.00019763,2]
[359634465,1746201032333,-411.01648551,0.00019763,2]
[359634466,1746201032342,-450.0,0.00019763,2]
[359634467,1746201032350,-450.0,0.00019763,2]
[359634468,1746201032360,-250.0,0.00019763,2]
[359634469,1746201032369,-450.0,0.00019763,2]
[359634470,1746201032378,-372.21852407,0.00019763,2]
[359634471,1746201032388,-450.0,0.00019763,2]
[359634472,1746201032397,-450.0,0.00019763,2]
[359634473,1746201032406,-450.0,0.00019763,2]
[359634474,1746201032416,-518.66278884,0.00019763,2]
[359634475,1746201032426,-450.0,0.00019763,2]
[359634476,1746201032436,-450.0,0.00019763,2]
[359634477,1746201032445,-500.0,0.00019763,2]
[359634478,1746201032455,-450.0,0.00019763,2]
[359634479,1746201032464,-450.0,0.00019763,2]
[359634480,1746201032474,-507.55484397,0.00019763,2]
[359634481,1746201032484,-450.0,0.00019763,2]
[359634482,1746201032494,-507.76397909,0.00019763,2]
[359634483,1746201032504,-450.0,0.00019763,2]
[359634484,1746201032513,-450.0,0.00019763,2]
[359634485,1746201032525,-450.0,0.00019763,2]
[359634486,1746201032535,-450.0,0.00019763,2]
[359634487,1746201032544,-450.0,0.00019763,2]
[359634488,1746201032554,-182.92174408,0.00019763,2]
[359634489,1746201032563,-450.0,0.00019763,2]
[359634490,1746201032572,-450.0,0.00019763,2]
[359634491,1746201032582,-450.0,0.00019763,2]
[359634493,1746201032591,-450.0,0.00019763,2]
[359634495,1746201032601,-450.0,0.00019763,2]
[359634497,1746201032611,-450.0,0.00019763,2]
[359634498,1746201032620,-2632.97,0.00019763,2]
[359634499,1746201032630,-485.17,0.00019763,2]
[359634500,1746201032640,-500.0,0.00019763,2]
[359634501,1746201032649,-642.6,0.00019763,2]
[359634502,1746201032659,-520.32,0.00019763,2]
[359634503,1746201032668,-1229.47,0.00019763,2]
[359634504,1746201032679,-450.0,0.00019763,2]
[359634505,1746201032688,-450.0,0.00019763,2]
[359634506,1746201032698,-450.0,0.00019763,2]
[359634507,1746201032707,-450.0,0.00019763,2]
[359634508,1746201032716,-450.0,0.00019763,2]
[359634509,1746201032727,-450.0,0.00019763,2]
[359634510,1746201032736,-450.0,0.00019763,2]
[359634511,1746201032746,-450.0,0.00019763,2]
[359634512,1746201032756,-450.0,0.00019763,2]
[359634513,1746201032766,-450.0,0.00019763,2]
[359634514,1746201032775,-450.0,0.00019763,2]
[359634515,1746201032785,-450.0,0.00019763,2]
[359634516,1746201032794,-450.0,0.00019763,2]
[359634517,1746201032803,-450.0,0.00019763,2]
[359634518,1746201032814,-450.0,0.00019763,2]
[359634519,1746201032823,-450.0,0.00019763,2]
[359634520,1746201032833,-450.0,0.00019763,2]
[359634521,1746201032842,-558.06,0.00019763,2]
[359634522,1746201032851,-450.0,0.00019763,2]
[359634523,1746201032863,-450.0,0.00019763,2]
[359634524,1746201032879,-450.0,0.00019763,2]
[359634525,1746201032889,-450.0,0.00019763,2]
[359634526,1746201032899,-480.39,0.00019763,2]
[359634527,1746201032908,-450.0,0.00019763,2]
[359634528,1746201032919,-461.0059693,0.00019763,2]
[359634529,1746201032930,-471.12,0.00019763,2]
[359634530,1746201032940,-9677.99221382,0.00019763,2]
[359634531,1746201032953,-350.0,0.00019763,2]
[359634532,1746201032965,-748.44104968,0.00019763,2]
[359634533,1746201033080,-788.7667365,0.00019763,2]
[359634534,1746201033090,-183.41908764,0.00019763,2]
[359634535,1746201033101,-278.84091236,0.00019763,2]
[359634536,1746201033110,-450.0,0.00019763,2]
[359634537,1746201033120,-498.48,0.00019763,2]
[359634538,1746201033186,-450.0,0.00019763,2]
[359634539,1746201033196,-682.57,0.00019763,2]
[359634540,1746201033206,-460.97400926,0.00019763,2]
[359634541,1746201033215,-719.43,0.00019763,2]
[359634542,1746201033224,-489.8,0.00019763,2]
[359634543,1746201033234,-450.0,0.00019763,2]
[359634544,1746201033243,-450.0,0.00019763,2]
[359634545,1746201033252,-450.0,0.00019763,2]
[359634546,1746201033262,-545.31,0.00019763,2]
[359634547,1746201033271,-450.0,0.00019763,2]
[359634548,1746201033280,-845.58,0.00019763,2]
[359634549,1746201033289,-717.79,0.00019763,2]
[359634550,1746201033298,-450.0,0.00019763,2]
[359634551,1746201033308,-450.0,0.00019763,2]
[359634552,1746201033317,-450.0,0.00019763,2]
[359634553,1746201033327,-450.0,0.00019763,2]
[359634554,1746201033337,-450.0,0.00019763,2]
[359634555,1746201033346,-450.0,0.00019763,2]
[359634556,1746201033355,-450.0,0.00019763,2]
[359634557,1746201033364,-450.0,0.00019763,2]
[359634558,1746201033373,-628.04,0.00019763,2]
[359634559,1746201033382,-450.0,0.00019763,2]
[359634560,1746201033391,-450.0,0.00019763,2]
[359634561,1746201033400,-450.0,0.00019763,2]
[359634562,1746201033409,-450.0,0.00019763,2]
[359634563,1746201033419,-450.0,0.00019763,2]
[359634564,1746201033428,-450.0,0.00019763,2]
[359634565,1746201033437,-7539.7,0.00019763,2]
[359634566,1746201033447,-452.55,0.00019763,2]
[359634567,1746201033456,-665.64,0.00019763,2]
[359634568,1746201033465,-450.0,0.00019763,2]
[359634569,1746201033475,-450.0,0.00019763,2]
[359634570,1746201033484,-450.0,0.00019763,2]
[359634571,1746201033493,-450.0,0.00019763,2]
[359634572,1746201033503,-791.1,0.00019763,2]
[359634573,1746201033513,-1699.04,0.00019763,2]
[359634574,1746201033523,-495.26,0.00019763,2]
[359634575,1746201033536,-619.5,0.00019763,2]
[359634576,1746201033546,-450.0,0.00019763,2]
[359634577,1746201033555,-450.0,0.00019763,2]
[359634578,1746201033566,-736.823139,0.00019763,2]
[359634579,1746201033576,-702.93,0.00019763,2]
[359634580,1746201033586,-450.0,0.00019763,2]
[359634581,1746201033595,-450.0,0.00019763,2]
[359634582,1746201033604,-450.0,0.00019763,2]
[359634583,1746201033613,-484.47,0.00019763,2]
[359634584,1746201033623,-450.0,0.00019763,2]
[359634585,1746201033632,-450.0,0.00019763,2]
[359634586,1746201033642,-450.0,0.00019763,2]
[359634587,1746201033651,-570.0,0.00019763,2]
[359634588,1746201033660,-450.0,0.00019763,2]
[359634589,1746201033670,-450.0,0.00019763,2]
[359634590,1746201033680,-592.22,0.00019763,2]
[359634591,1746201033689,-450.0,0.00019763,2]
[359634592,1746201033699,-569.961538,0.00019763,2]
[359634593,1746201033709,-450.0,0.00019763,2]
[359634594,1746201033718,-500.0,0.00019763,2]
[359634595,1746201033727,-212.89222671,0.00019763,2]
[359634596,1746201033736,-500.0,0.00019763,2]
[359634597,1746201033746,-297.66683204,0.00019763,2]
[359634598,1746201033755,-500.0,0.00019763,2]
[359634599,1746201033764,-446.14292802,0.00019763,2]
[359634600,1746201033774,-530.38317197,0.00019764,2]
[359634601,1746201033783,-450.0,0.00019764,2]
[359634602,1746201033792,-450.0,0.00019764,2]
[359634603,1746201033801,-450.0,0.00019764,2]
[359634604,1746201033811,-560.55379281,0.00019764,2]
[359634605,1746201033820,-450.0,0.00019764,2]
[359634606,1746201033829,-830.22,0.00019764,2]
[359634607,1746201033838,-450.0,0.00019764,2]
[359634608,1746201033848,-450.0,0.00019764,2]
[359634609,1746201033857,-450.0,0.00019764,2]
[359634610,1746201033866,-450.0,0.00019764,2]
[359634611,1746201033876,-450.0,0.00019764,2]
[359634612,1746201033885,-450.0,0.00019764,2]
[359634613,1746201033894,-1091.01969866,0.00019764,2]
[359634614,1746201033904,-450.0,0.00019764,2]
[359634615,1746201033913,-569.41,0.00019764,2]
[359634616,1746201033923,-450.0,0.00019764,2]
[359634617,1746201033932,-450.0,0.00019764,2]
[359634618,1746201033941,-480.02,0.00019764,2]
[359634619,1746201033951,-661.03,0.00019764,2]
[359634620,1746201033960,-450.0,0.00019764,2]
[359634621,1746201033969,-450.0,0.00019764,2]
[359634622,1746201033979,-450.0,0.00019764,2]
[359634623,1746201033988,-450.0,0.00019764,2]
[359634624,1746201033997,-450.0,0.00019764,2]
[359634625,1746201034007,-509.67,0.00019764,2]
[359634626,1746201034017,-450.0,0.00019764,2]
[359634627,1746201034026,-552.8,0.00019764,2]
[359634628,1746201034035,-450.0,0.00019764,2]
[359634629,1746201034045,-450.0,0.00019764,2]
[359634630,1746201034055,-450.0,0.00019764,2]
[359634631,1746201034064,-948.37,0.00019764,2]
[359634632,1746201034074,-450.0,0.00019764,2]
[359634633,1746201034084,-450.0,0.00019764,2]
[359634634,1746201034093,-450.0,0.00019764,2]
[359634635,1746201034103,-450.0,0.00019764,2]
[359634636,1746201034112,-450.0,0.00019764,2]
[359634637,1746201034122,-450.0,0.00019764,2]
[359634638,1746201034132,-450.0,0.00019764,2]
[359634639,1746201034141,-450.0,0.00019764,2]
[359634640,1746201034150,-450.0,0.00019764,2]
[359634641,1746201034160,-450.0,0.00019764,2]
[359634642,1746201034170,-450.0,0.00019764,2]
[359634643,1746201034180,-450.0,0.00019764,2]
[359634644,1746201034189,-450.0,0.00019764,2]
[359634645,1746201034199,-450.0,0.00019764,2]
[359634646,1746201034209,-459.89,0.00019764,2]
[359634647,1746201034218,-450.0,0.00019764,2]
[359634648,1746201034227,-441.07893574,0.00019764,2]
[359634649,1746201034237,-450.0,0.00019764,2]
[359634650,1746201034246,-450.0,0.00019764,2]
[359634651,1746201034256,-450.0,0.00019764,2]
[359634652,1746201034265,-450.0,0.00019764,2]
[359634653,1746201034275,-450.0,0.00019764,2]
[359634654,1746201034284,-450.0,0.00019764,2]
[359634655,1746201034293,-450.0,0.00019764,2]
[359634656,1746201034302,-462.27,0.00019764,2]
[359634657,1746201034313,-450.0,0.00019764,2]
[359634658,1746201034323,-467.45,0.00019764,2]
[359634659,1746201034333,-450.0,0.00019764,2]
[359634660,1746201034342,-450.0,0.00019764,2]
[359634661,1746201034352,-450.0,0.00019764,2]
[359634662,1746201034361,-450.0,0.00019764,2]
[359634663,1746201034371,-450.0,0.00019764,2]
[359634664,1746201034380,-450.0,0.00019764,2]
[359634665,1746201034390,-450.0,0.00019764,2]
[359634666,1746201034399,-450.0,0.00019764,2]
[359634667,1746201034408,-1373.37,0.00019764,2]
[359634668,1746201034417,-411.01286638,0.00019764,2]
[359634669,1746201034427,-1082.92,0.00019764,2]
[359634670,1746201034436,-450.0,0.00019764,2]
[359634671,1746201034446,-450.0,0.00019764,2]
[359634672,1746201034455,-450.0,0.00019764,2]
[359634673,1746201034465,-491.37161119,0.00019764,2]
[359634674,1746201034475,-731.05,0.00019764,2]
[359634675,1746201034484,-450.0,0.00019764,2]
[359634676,1746201034494,-450.0,0.00019764,2]
[359634677,1746201034503,-646.26,0.00019764,2]
[359634678,1746201034513,-450.0,0.00019764,2]
[359634679,1746201034523,-450.0,0.00019764,2]
[359634680,1746201034536,-450.0,0.00019764,2]
[359634681,1746201034546,-553.04,0.00019764,2]
[359634682,1746201034555,-679.03,0.00019764,2]
[359634683,1746201034566,-450.0,0.00019764,2]
[359634684,1746201034575,-594.18,0.00019764,2]
[359634685,1746201034583,-450.0,0.00019764,2]
[359634686,1746201034592,-741.76,0.00019764,2]
[359634687,1746201034601,-450.0,0.00019764,2]
[359634688,1746201034609,-638.88,0.00019764,2]
[359634689,1746201034618,-450.0,0.00019764,2]
[359634690,1746201034626,-450.0,0.00019764,2]
[359634691,1746201034635,-450.0,0.00019764,2]
[359634692,1746201034644,-693.04,0.00019764,2]
[359634693,1746201034653,-511.16,0.00019764,2]
[359634694,1746201034663,-450.0,0.00019764,2]
[359634695,1746201034672,-450.0,0.00019764,2]
[359634696,1746201034681,-450.0,0.00019764,2]
[359634697,1746201034691,-450.0,0.00019764,2]
[359634698,1746201034700,-450.0,0.00019764,2]
[359634699,1746201034710,-450.0,0.00019764,2]
[359634700,1746201034719,-450.0,0.00019764,2]
[359634701,1746201034729,-492.19976544,0.00019764,2]
[359634702,1746201034738,-450.0,0.00019764,2]
[359634703,1746201034747,-450.0,0.00019764,2]
[359634704,1746201034757,-450.0,0.00019764,2]
[359634705,1746201034766,-300.0,0.00019764,2]
[359634706,1746201034776,-789.77,0.00019764,2]
[359634707,1746201034785,-450.0,0.00019764,2]
[359634708,1746201034795,-624.46,0.00019764,2]
[359634709,1746201034805,-625.75,0.00019764,2]
[359634710,1746201034814,-450.0,0.00019764,2]
[359634711,1746201034824,-450.0,0.00019764,2]
[359634712,1746201034835,-450.0,0.00019764,2]
[359634713,1746201034844,-450.0,0.00019764,2]
[359634714,1746201034854,-450.0,0.00019764,2]
[359634715,1746201034863,-450.0,0.00019764,2]
[359634716,1746201034875,-450.0,0.00019764,2]
[359634717,1746201034884,-490.02,0.00019764,2]
[359634718,1746201034893,-450.0,0.00019764,2]
[359634719,1746201034903,-450.0,0.00019764,2]
[359634720,1746201034913,-450.0,0.00019764,2]
[359634721,1746201034923,-450.0,0.00019764,2]
[359634722,1746201034932,-450.0,0.00019764,2]
[359634723,1746201034941,-450.0,0.00019764,2]
[359634724,1746201034950,-211.28236262,0.00019764,2]
[359634725,1746201034960,-450.0,0.00019764,2]
[359634726,1746201034969,-618.12,0.00019764,2]
[359634727,1746201034979,-450.0,0.00019764,2]
[359634728,1746201034988,-450.0,0.00019764,2]
[359634729,1746201034997,-450.0,0.00019764,2]
[359634730,1746201035007,-514.44,0.00019764,2]
[359634731,1746201035016,-450.0,0.00019764,2]
[359634732,1746201035025,-716.23,0.00019764,2]
[359634733,1746201035034,-764.55,0.00019764,2]
[359634734,1746201035043,-450.0,0.00019764,2]
[359634735,1746201035052,-616.36,0.00019764,2]
[359634736,1746201035060,-887.52,0.00019764,2]
[359634737,1746201035068,-451.65,0.00019764,2]
[359634738,1746201035076,-450.0,0.00019764,2]
[359634739,1746201035085,-2926.44,0.00019764,2]
[359634740,1746201035093,-490.83,0.00019764,2]
[359634741,1746201035102,-450.0,0.00019764,2]
[359634742,1746201035111,-450.0,0.00019764,2]
[359634743,1746201035120,-450.0,0.00019764,2]
[359634744,1746201035129,-1572.37,0.00019764,2]
[359634745,1746201035139,-450.0,0.00019764,2]
[359634746,1746201035148,-665.97,0.00019764,2]
[359634747,1746201035158,-450.0,0.00019764,2]
[359634748,1746201035168,-450.0,0.00019764,2]
[359634749,1746201035177,-824.86,0.00019764,2]
[359634750,1746201035188,-450.0,0.00019764,2]
[359634751,1746201035197,-450.0,0.00019764,2]
[359634752,1746201035206,-4332.42,0.00019764,2]
[359634753,1746201035216,-450.0,0.00019764,2]
[359634754,1746201035225,-486.48,0.00019764,2]
[359634755,1746201035234,-450.0,0.00019764,2]
[359634756,1746201035244,-441.29773002,0.00019764,2]
[359634757,1746201035253,-450.0,0.00019764,2]
[359634758,1746201035262,-450.0,0.00019764,2]
[359634759,1746201035271,-500.0,0.00019764,2]
[359634760,1746201035281,-450.0,0.00019764,2]
[359634761,1746201035290,-450.0,0.00019764,2]
[359634762,1746201035300,-698.55,0.00019764,2]
[359634763,1746201035310,-450.0,0.00019764,2]
[359634764,1746201035320,-591.16,0.00019764,2]
[359634765,1746201035329,-492.14,0.00019764,2]
[359634766,1746201035339,-450.26,0.00019764,2]
[359634767,1746201035348,-859.36,0.00019764,2]
[359634768,1746201035356,-2316.15,0.00019764,2]
[359634769,1746201035364,-803.63,0.00019764,2]
[359634770,1746201035373,-450.0,0.00019764,2]
[359634771,1746201035382,-513.33,0.00019764,2]
[359634772,1746201035393,-452.29846938,0.00019764,2]
[359634773,1746201035403,-450.0,0.00019764,2]
[359634774,1746201035413,-496.77,0.00019764,2]
[359634775,1746201035423,-1499.97,0.00019764,2]
[359634776,1746201035432,-450.0,0.00019764,2]
[359634777,1746201035442,-450.0,0.00019764,2]
[359634778,1746201035451,-450.0,0.00019764,2]
[359634779,1746201035463,-1218.7,0.00019764,2]
[359634780,1746201035473,-458.04,0.00019764,2]
[359634781,1746201035482,-2608.51,0.00019764,2]
[359634782,1746201035492,-450.0,0.00019764,2]
[359634783,1746201035501,-468.15,0.00019764,2]
[359634784,1746201035511,-5534.26,0.00019764,2]
[359634785,1746201035521,-2096.61,0.00019764,2]
[359634786,1746201035535,-834.41,0.00019764,2]
[359634787,1746201035544,-450.0,0.00019764,2]
[359634788,1746201035554,-758.01,0.00019764,2]
[359634789,1746201035563,-5862.56,0.00019764,2]
[359634790,1746201035573,-450.0,0.00019764,2]
[359634791,1746201035582,-450.0,0.00019764,2]
[359634792,1746201035592,-636.69,0.00019764,2]
[359634793,1746201035602,-450.0,0.00019764,2]
[359634794,1746201035611,-450.0,0.00019764,2]
[359634795,1746201035622,-450.0,0.00019764,2]
[359634796,1746201035631,-5586.04,0.00019764,2]
[359634797,1746201035640,-450.0,0.00019764,2]
[359634798,1746201035650,-450.0,0.00019764,2]
[359634799,1746201035659,-450.0,0.00019764,2]
[359634800,1746201035669,-419.97576108,0.00019764,2]
[359634801,1746201035678,-450.0,0.00019764,2]
[359634802,1746201035688,-450.0,0.00019764,2]
[359634803,1746201035697,-511.14,0.00019764,2]
[359634804,1746201035706,-824.83,0.00019764,2]
[359634805,1746201035716,-510.40776958,0.00019764,2]
[359634806,1746201035725,-638.13,0.00019764,2]
[359634807,1746201035734,-450.0,0.00019764,2]
[359634808,1746201035743,-564.35,0.00019764,2]
[359634809,1746201035752,-450.0,0.00019764,2]
[359634810,1746201035762,-450.0,0.00019764,2]
[359634811,1746201035771,-450.0,0.00019764,2]
[359634812,1746201035780,-450.0,0.00019764,2]
[359634813,1746201035790,-666.54,0.00019764,2]
[359634814,1746201035799,-5763.08,0.00019764,2]
[359634815,1746201035808,-450.0,0.00019764,2]
[359634816,1746201035818,-450.0,0.00019764,2]
[359634817,1746201035827,-111585.98,0.00019764,2]
[359634818,1746201035836,-1016.66,0.00019764,2]
[359634819,1746201035845,-590.38,0.00019764,2]
[359634820,1746201035854,-618.47,0.00019764,2]
[359634821,1746201035863,-450.0,0.00019764,2]
[359634822,1746201035872,-542.4,0.00019764,2]
[359634823,1746201035882,-6038.92,0.00019764,2]
[359634824,1746201035891,-1258.12,0.00019764,2]
[359634825,1746201035900,-450.0,0.00019764,2]
[359634826,1746201035909,-450.0,0.00019764,2]
[359634827,1746201035918,-550.18,0.00019764,2]
[359634828,1746201035928,-31355.2,0.00019764,2]
[359634829,1746201035937,-450.0,0.00019764,2]
[359634830,1746201035946,-136367.11,0.00019764,2]
[359634831,1746201035955,-2096.95,0.00019764,2]
[359634832,1746201035964,-491.58,0.00019764,2]
[359634833,1746201035974,-450.0,0.00019764,2]
[359634834,1746201035983,-450.0,0.00019764,2]
[359634835,1746201035992,-706.55,0.00019764,2]
[359634836,1746201036002,-450.0,0.00019764,2]
[359634837,1746201036012,-966.97,0.00019764,2]
[359634838,1746201036021,-645.52,0.00019764,2]
[359634839,1746201036030,-18530.75,0.00019764,2]
[359634840,1746201036039,-451.07455232,0.00019764,2]
[359634841,1746201036050,-1179.41,0.00019764,2]
[359634842,1746201036059,-450.0,0.00019764,2]
[359634843,1746201036069,-450.0,0.00019764,2]
[359634844,1746201036078,-450.0,0.00019764,2]
[359634845,1746201036087,-555.5,0.00019764,2]
[359634846,1746201036096,-450.0,0.00019764,2]
[359634847,1746201036106,-521.12,0.00019764,2]
[359634848,1746201036115,-450.00000001,0.00019764,2]
[359634849,1746201036124,-450.0,0.00019765,2]
[359634850,1746201036134,-450.0,0.00019765,2]
[359634851,1746201036144,-450.0,0.00019765,2]
[359634852,1746201036153,-450.0,0.00019765,2]
[359634853,1746201036163,-450.0,0.00019765,2]
[359634854,1746201036172,-602.19,0.00019765,2]
[359634855,1746201036182,-450.0,0.00019765,2]
[359634856,1746201036192,-450.0,0.00019765,2]
[359634857,1746201036201,-615.12,0.00019765,2]
[359634858,1746201036211,-450.0,0.00019765,2]
[359634859,1746201036219,-450.0,0.00019765,2]
[359634860,1746201036229,-450.0,0.00019765,2]
[359634861,1746201036238,-450.0,0.00019765,2]
[359634862,1746201036247,-586.68,0.00019765,2]
[359634863,1746201036256,-450.0,0.00019765,2]
[359634864,1746201036265,-498.97,0.00019765,2]
[359634865,1746201036275,-450.0,0.00019765,2]
[359634866,1746201036285,-450.0,0.00019765,2]
[359634867,1746201036294,-450.0,0.00019765,2]
[359634868,1746201036304,-611.05,0.00019765,2]
[359634869,1746201036313,-450.0,0.00019765,2]
[359634870,1746201036324,-450.0,0.00019765,2]
[359634871,1746201036335,-450.0,0.00019765,2]
[359634872,1746201036346,-450.0,0.00019765,2]
[359634873,1746201036355,-499.0,0.00019765,2]
[359634874,1746201036365,-450.0,0.00019765,2]
[359634875,1746201036373,-630.27,0.00019765,2]
[359634876,1746201036383,-450.0,0.00019765,2]
[359634877,1746201036392,-450.0,0.00019765,2]
[359634878,1746201036400,-450.0,0.00019765,2]
[359634879,1746201036409,-450.0,0.00019765,2]
[359634880,1746201036418,-450.0,0.00019765,2]
[359634881,1746201036427,-154.9939015,0.00019765,2]
[359634882,1746201036436,-638.01,0.00019765,2]
[359634883,1746201036445,-450.0,0.00019765,2]
[359634884,1746201036453,-2008.18,0.00019765,2]
[359634885,1746201036462,-450.0,0.00019765,2]
[359634886,1746201036471,-557.73,0.00019765,2]
[359634887,1746201036481,-536.44,0.00019765,2]
[359634888,1746201036491,-511.52,0.00019765,2]
[359634889,1746201036500,-450.0,0.00019765,2]
[359634890,1746201036510,-238.80664901,0.00019765,2]
[359634891,1746201036519,-450.0,0.00019765,2]
[359634892,1746201036532,-450.0,0.00019765,2]
[359634893,1746201036542,-951.24,0.00019765,2]
[359634894,1746201036551,-450.0,0.00019765,2]
[359634895,1746201036560,-490.74,0.00019765,2]
[359634896,1746201036570,-450.0,0.00019765,2]
[359634897,1746201036580,-770.62,0.00019765,2]
[359634898,1746201036589,-986.75,0.00019765,2]
[359634899,1746201036598,-450.0,0.00019765,2]
[359634900,1746201036610,-450.0,0.00019765,2]
[359634901,1746201036620,-863.3,0.00019765,2]
[359634902,1746201036629,-450.0,0.00019765,2]
[359634903,1746201036638,-2789.73,0.00019765,2]
[359634904,1746201036648,-450.0,0.00019765,2]
[359634905,1746201036658,-450.0,0.00019765,2]
[359634906,1746201036667,-1188.46,0.00019765,2]
[359634907,1746201036677,-450.0,0.00019765,2]
[359634908,1746201036686,-557.16,0.00019765,2]
[359634909,1746201036696,-450.0,0.00019765,2]
[359634910,1746201036706,-1197.0,0.00019765,2]
[359634911,1746201036715,-823.82,0.00019765,2]
[359634912,1746201036726,-852.31,0.00019765,2]
[359634913,1746201036736,-450.0,0.00019765,2]
[359634914,1746201036748,-2477.61,0.00019765,2]
[359634915,1746201036758,-450.0,0.00019765,2]
[359634916,1746201036767,-450.0,0.00019765,2]
[359634917,1746201036777,-450.0,0.00019765,2]
[359634918,1746201036787,-450.0,0.00019765,2]
[359634919,1746201036796,-450.0,0.00019765,2]
[359634920,1746201036805,-483.49,0.00019765,2]
[359634921,1746201036815,-800.4,0.00019765,2]
[359634922,1746201036827,-450.0,0.00019765,2]
[359634923,1746201036836,-921.94,0.00019765,2]
[359634924,1746201036845,-450.0,0.00019765,2]
[359634925,1746201036854,-467.99,0.00019765,2]
[359634926,1746201036864,-450.0,0.00019765,2]
[359634927,1746201036873,-450.0,0.00019765,2]
[359634928,1746201036882,-825.69,0.00019765,2]
[359634929,1746201036893,-654.1,0.00019765,2]
[359634930,1746201036902,-450.0,0.00019765,2]
[359634931,1746201036911,-450.0,0.00019765,2]
[359634932,1746201036920,-671.86,0.00019765,2]
[359634933,1746201036930,-450.0,0.00019765,2]
[359634934,1746201036940,-450.0,0.00019765,2]
[359634935,1746201036949,-450.0,0.00019765,2]
[359634936,1746201036959,-450.0,0.00019765,2]
[359634937,1746201036967,-559.51,0.00019765,2]
[359634938,1746201036977,-1007.31,0.00019765,2]
[359634939,1746201036987,-450.0,0.00019765,2]
[359634940,1746201036997,-450.0,0.00019765,2]
[359634941,1746201037006,-450.0,0.00019765,2]
[359634942,1746201037015,-575.83,0.00019765,2]
[359634943,1746201037025,-450.0,0.00019765,2]
[359634944,1746201037034,-450.0,0.00019765,2]
[359634945,1746201037043,-450.0,0.00019765,2]
[359634946,1746201037054,-550.5,0.00019765,2]
[359634947,1746201037063,-1354.27,0.00019765,2]
[359634948,1746201037073,-450.0,0.00019765,2]
[359634949,1746201037083,-450.0,0.00019765,2]
[359634950,1746201037092,-770.79,0.00019765,2]
[359634951,1746201037101,-1395.21,0.00019765,2]